[Event "DFMM-LV 2023"]
[Site "Braunfels"]
[Date "2023.06.09"]
[Round "2.22"]
[White "Hartung, Katja"]
[Black "Froehlich-Dill, Astrid"]
[Result "1-0"]
[Annotator "TA"]
[ECO "C01"]
[WhiteElo "1944"]
[BlackElo "1762"]
[PlyCount "79"]
[EventDate "2023.06.09"]
[EventType "team-tourn"]
[EventCountry "GER"]
[SourceTitle "playchess.com"]
[Source "ChessBase"]
[SourceQuality "1"]
[TimeControl "40/5400+30:1800+30"]

{[%evp 9,79,29,29,37,30,20,49,33,39,41,57,13,14,15,19,16,23,16,22,24,37,28,48,46,72,27,43,58,67,64,83,79,135,71,137,1,216,148,277,278,381,363,406,297,302,20,21,31,528,522,478,261,718,718,1289,1297,1280,1250,1217,1202,1364,1214,1219,1168,1341,1113,1091,1106,1106,1106,1048,1042]} 1. e4 {[%emt 0:00:04]} e6 {[%emt 0:01:05]} 2. d4 {[%emt 0:02:24]} b6 {[%emt 0:00:30]} 3. Be3 {[%emt 0:02:45]} Nf6 {[%emt 0:02:35]} 4. Nd2 {[%emt 0:00:45]} Bb7 {[%emt 0:01:42]} 5. Bd3 {[%emt 0:00:34]} c5 {[%emt 0:07:07]} 6. c3 {[%emt 0:01:49] C01: French: Exchange Variation.} Nc6 {[%emt 0:07:29]} 7. Rc1 {[%emt 0:02:14]} cxd4 {[%emt 0:04:45]} 8. cxd4 {[%emt 0:00:49] White is slightly better.} Nb4 {[%emt 0:05:02][%csl LRa2,LRd3]} 9. Bb1 {[%emt 0:00:04]} Ba6 {[%emt 0:02:37] [#]} 10. Bg5 $146 {[%emt 0:13:16]} ({Predecessor:} 10. Ndf3 Rc8 11. Ne2 Rxc1 12. Bxc1 d5 13. Ne5 dxe4 14. a3 Nd3+ 15. Bxd3 Bxd3 16. Nxd3 exd3 17. Qxd3 {0-1 Oskam,G-Maroczy,G Utrecht 1920 (2)}) 10... Rc8 {[%emt 0:12:03]} 11. Nb3 {[%emt 0:07:30][%cal Bd2b3,Bb3c1,Bc1d3][%mdl 32]} Rxc1 {[%emt 0:06:08]} 12. Nxc1 {[%emt 0:00:35]} Be7 {[%emt 0:08:40]} 13. a3 {[%emt 0:03:56]} Nc6 {[%emt 0:00:48][%cal Bb4c6,Bc6a5,Ba5c4][%mdl 32]} 14. Nge2 {[%emt 0:00:53]} h6 {[%emt 0:03:16]} 15. Bf4 {[%emt 0:02:25]} Nh5 {[%emt 0:10:01]} 16. Be3 {[%emt 0:03:49]} Na5 {[%emt 0:07:04]} 17. Nd3 {[%emt 0:09:21]} (17. Nc3 $5 {[%cal Rd1h5]} g6 18. Bd3 $16) 17... Nc4 {[%emt 0:03:30]} 18. Bc1 {[%emt 0:00:46]} Qc8 {[%emt 0:03:29]} 19. O-O {[%emt 0:02:05]} g6 {[%emt 0:03:51]} 20. Re1 {[%emt 0:06:11]} Nf6 {[%emt 0:00:30]} (20... Bb7 $142) 21. f3 {[%emt 0:00:58]} (21. Nb4 $142) 21... g5 {[%emt 0:00:58]} (21... h5 $142) 22. Nc3 {[%emt 0:00:17]} (22. Nb4 $16) 22... O-O $2 {[%emt 0:01:15]} (22... Nxa3 $1 $11 23. bxa3 (23. Ba2 Nb5 $11) 23... Qxc3) 23. Qc2 {[%emt 0:03:47] Black must now prevent e5.} Ne8 {[%emt 0:01:16]} (23... e5 $16) 24. e5 $18 {[%emt 0:00:43][%cal Od3f4] Hoping for Nf4!} f5 {[%emt 0:00:54] [#]} 25. exf6 $1 {[%emt 0:00:07]} Nxf6 {[%emt 0:01:35]} 26. Nb4 {[%emt 0:01:47]} Rf7 {[%emt 0:02:25]} 27. Qg6+ $2 {[%emt 0:01:19]} (27. Nxa6 $18 Qxa6 28. d5 (28. Qg6+ Rg7 $18)) 27... Rg7 $11 {[%emt 0:00:02]} 28. Qxh6 {[%emt 0:00:25] aiming for Nxa6.} Nh7 $2 {[%emt 0:02:15][%mdl 8192]} ({Black should try} 28... Nxa3 $14 29. Bxg5 (29. bxa3 $2 {too greedy.} Qxc3 30. Kf2 Bb5 $19) 29... Nxb1 30. Bxf6 (30. Rxb1 Rh7 $11) 30... Bxf6 31. Qxf6 Nxc3) 29. Nxa6 $18 {[%emt 0:02:29]} Qxa6 {[%emt 0:00:15]} 30. d5 {[%emt 0:00:57]} (30. Bxh7+ $142 Rxh7 31. Qg6+ Rg7 32. Qe8+ Bf8 33. Ne4) 30... Bc5+ $2 {[%emt 0:00:55] Black is weak on the light squares} (30... Nf8 31. dxe6 dxe6) 31. Kh1 {[%emt 0:00:15] White is clearly winning.} e5 {[%emt 0:00:53]} 32. Bxh7+ {[%emt 0:01:29]} Rxh7 {[%emt 0:00:02]} 33. Qxg5+ {[%emt 0:00:13]} Rg7 {[%emt 0:00:11]} 34. Qd8+ {[%emt 0:00:52]} Bf8 {[%emt 0:00:21]} 35. Ne4 {[%emt 0:00:22] [#] Nf6+ is the strong threat.} Rf7 {[%emt 0:01:04]} 36. Bh6 {[%emt 0:02:34] Bxf8 would be deadly.} Qa5 {[%emt 0:00:49]} 37. b4 {[%emt 0:00:47] Threatening mate with Bxf8.} Qxd5 {[%emt 0:00:47]} 38. Bxf8 {[%emt 0:00:37]} Rxf8 {[%emt 0:00:12]} 39. Nf6+ {[%emt 0:00:08]} Kf7 {[%emt 0:00:32]} 40. Qxf8+ {[%emt 0:00:08] Weighted Error Value: White=0.49/Black=0.51} ({Not} 40. Qxd7+ Qxd7 41. Nxd7 Rd8 42. Nxe5+ (42. Rd1 $2 Ke7 $19) 42... Nxe5 $15) 1-0

[Event "DFMM-LV 2023"]
[Site "Braunfels"]
[Date "2023.06.09"]
[Round "2.23"]
[White "von Beckh, Frieda"]
[Black "Pflug, Tanja"]
[Result "1/2-1/2"]
[Annotator "TA"]
[ECO "C12"]
[WhiteElo "1672"]
[BlackElo "1994"]
[PlyCount "70"]
[EventDate "2023.06.09"]
[EventType "team-tourn"]
[EventCountry "GER"]
[SourceTitle "playchess.com"]
[Source "ChessBase"]
[SourceQuality "1"]
[TimeControl "40/5400+30:1800+30"]

{[%evp 19,70,-24,-24,-22,27,-70,-51,-53,-18,-11,49,48,91,87,85,97,91,97,147,34,31,29,24,35,40,22,24,19,25,6,45,6,51,42,76,74,84,19,60,0,0,-8,-8,-89,-52,-55,67,63,139,122,113,130,122]} 1. e4 {[%emt 0:00:03][%cal Be2e4,Be4e5,Be5f6][%mdl 32]} e6 {[%emt 0:00:06]} 2. d4 {[%emt 0:00:05]} d5 {[%emt 0:00:06]} 3. Nc3 {[%emt 0:00:03]} Nf6 {[%emt 0:00:09]} 4. Bg5 {[%emt 0:00:08]} Bb4 {[%emt 0:00:13]} 5. e5 {[%emt 0:02:36]} h6 {[%emt 0:00:06]} 6. exf6 {[%emt 0:04:40]} hxg5 {[%emt 0:00:24]} 7. fxg7 {[%emt 0:00:16]} Rg8 {[%emt 0:00:05]} 8. h4 {[%emt 0:04:20]} gxh4 {[%emt 0:05:39]} 9. Qh5 {[%emt 0:05:50]} Qf6 {[%emt 0:01:26]} 10. Rxh4 {[%emt 0:01:38]} Qxg7 {[%emt 0:03:36]} 11. Nf3 {[%emt 0:01:31] C12: French: Classical System: McCutcheon Variation.} c5 {[%emt 0:09:35] [#]} (11... Nc6 $142) 12. Ne5 $146 {[%emt 0:09:00]} (12. O-O-O $11 c4 13. Nb5) ({Predecessor:} 12. a3 Ba5 13. Ne5 cxd4 14. Rxd4 Qf6 15. g3 Rg5 16. Bb5+ Ke7 17. Qxf7+ Qxf7 18. Nxf7 Kxf7 {0-1 Rajic,I (2013)-Sedlak,I (2095) Subotica Autumn op 2012 (3)}) 12... cxd4 $15 {[%emt 0:07:24]} 13. Rxd4 {[%emt 0:10:02] Black is slightly better.} Bxc3+ {[%emt 0:11:33]} 14. bxc3 {[%emt 0:00:07]} Nc6 {[%emt 0:00:17]} (14... Rh8 $11 15. Qe2 (15. Bb5+ $2 Bd7 $19) 15... Nc6 16. Nxc6 bxc6) 15. Rg4 $14 {[%emt 0:06:17]} Qf8 {[%emt 0:01:13] [#]} 16. Nxf7 $1 {[%emt 0:01:31] Threatens to win with Rxg8. White is much more active.} Rxg4 {[%emt 0:02:12]} 17. Ne5+ {[%emt 0:02:02]} Kd8 {[%emt 0:04:10][%cal Be8d8,Bd8e7,Be7f6][%mdl 32]} 18. Qxg4 {[%emt 0:06:39]} Qf6 {[%emt 0:08:27] [#]} ({Better is} 18... Nxe5 19. Qg5+ Kc7 20. Qxe5+ Qd6 21. Qxd6+ Kxd6) 19. Qg5 $3 {[%emt 0:04:54][%mdl 512]} Qxg5 {[%emt 0:04:41]} 20. Nf7+ {[%emt 0:00:06][%cal Be5f7,Bf7g5,Bg5f3,Bf3d2,Bd2b3][%mdl 32]} Ke7 {[%emt 0:00:39]} 21. Nxg5 {[%emt 0:00:08]} e5 {[%emt 0:00:37]} 22. Rd1 {[%emt 0:01:05]} Kf6 {[%emt 0:01:06]} 23. Nf3 {[%emt 0:01:23]} Be6 {[%emt 0:00:52]} 24. Nd2 {[%emt 0:01:05]} Bf5 {[%emt 0:03:26]} 25. Nb3 {[%emt 0:02:06]} Rd8 {[%emt 0:00:45]} ({Resist} 25... Bxc2 26. Rxd5 Bf5 27. Rd6+ Ke7 28. Rh6 $16) (25... Ne7 $5 {[%cal Rf5c2]}) 26. Bd3 {[%emt 0:00:30]} Bc8 {[%emt 0:00:30]} 27. f3 {[%emt 0:00:30]} b6 {[%emt 0:00:30]} 28. Bb5 {[%emt 0:00:30]} (28. c4 $16) 28... Bb7 {[%emt 0:00:30]} 29. c4 {[%emt 0:00:30]} ({White should play} 29. Bxc6 $14 Bxc6 30. c4) 29... Nb4 $11 {[%emt 0:00:30][%csl LRa2,LRc2]} 30. c3 {[%emt 0:00:30]} Nxa2 {[%emt 0:00:30]} 31. Rd3 {[%emt 0:15:04]} (31. Ra1 $11 Nxc3 32. Rxa7) 31... a6 {[%emt 0:18:02]} 32. Ba4 {[%emt 0:00:30]} Rg8 {[%emt 0:00:30]} (32... Rc8 $15 33. cxd5 Rxc3 34. Rxc3 {[%mdl 64] Remove Defender} Nxc3) 33. cxd5 $14 {[%emt 0:00:30]} b5 {[%emt 0:00:30]} (33... Rxg2 $14 34. Bc6 Rg7) 34. Nc5 $1 $16 {[%emt 0:00:30]} Bxd5 {[%emt 0:00:30]} (34... Rxg2 $2 35. Nxb7 e4 36. fxe4 $18) 35. Rxd5 {[%emt 0:00:30]} bxa4 {[%emt 0:00:30] An interesting game.   Weighted Error Value: White=0.29 (precise) /Black=0.29 (precise)} 1/2-1/2

[Event "DFMM-LV 2023"]
[Site "Braunfels"]
[Date "2023.06.09"]
[Round "2.24"]
[White "Eue, Vicky"]
[Black "Kaulfuss, Christa"]
[Result "1-0"]
[Annotator "NA RC COMBH"]
[ECO "B00"]
[WhiteElo "1682"]
[BlackElo "1714"]
[PlyCount "55"]
[EventDate "2023.06.09"]
[EventType "team-tourn"]
[EventCountry "GER"]
[SourceTitle "playchess.com"]
[Source "ChessBase"]
[SourceQuality "1"]
[TimeControl "40/5400+30:1800+30"]

1. e4 {[%emt 0:00:14]} Nc6 {[%emt 0:00:04]} 2. d4 {[%emt 0:01:37]} e5 {[%emt 0:00:32]} 3. d5 {[%emt 0:01:29]} Nce7 {[%emt 0:00:11]} 4. d6 {[%emt 0:01:47]} Ng6 {[%emt 0:00:28]} 5. dxc7 {[%emt 0:00:31]} Qxc7 {[%emt 0:00:13]} 6. Nc3 {[%emt 0:00:35]} Bb4 {[%emt 0:01:09]} 7. Bd2 {[%emt 0:00:15]} Nf6 {[%emt 0:00:40]} 8. Nb5 {[%emt 0:02:37]} Bxd2+ {[%emt 0:01:11]} 9. Qxd2 {[%emt 0:03:36]} Qb6 {[%emt 0:05:08]} 10. Nd6+ {[%emt 0:02:04]} Ke7 {[%emt 0:03:49]} 11. O-O-O {[%emt 0:06:35]} Rd8 {[%emt 0:05:58]} 12. f3 {[%emt 0:08:24]} Ne8 {[%emt 0:01:01]} 13. Nf5+ {[%emt 0:11:15]} Kf8 {[%emt 0:00:42]} 14. Bc4 {[%emt 0:00:41]} d6 {[%emt 0:03:53]} 15. Ne3 {[%emt 0:03:44]} Nc7 {[%emt 0:02:17]} 16. Bb3 {[%emt 0:01:40]} Nb5 {[%emt 0:11:19]} 17. Ne2 {[%emt 0:06:23]} Be6 {[%emt 0:01:04]} 18. Nd5 {[%emt 0:00:41]} Qc5 {[%emt 0:02:13]} 19. a4 {[%emt 0:01:13]} Nc7 {[%emt 0:01:48]} 20. Kb1 {[%emt 0:01:03]} Rac8 {[%emt 0:00:28]} 21. f4 {[%emt 0:05:30]} Nxf4 {[%emt 0:02:56]} 22. Nexf4 {[%emt 0:00:09]} exf4 {[%emt 0:00:42]} 23. Qxf4 {[%emt 0:00:20]} Kg8 {[%emt 0:00:39]} 24. Ne7+ {[%emt 0:01:10]} Kh8 {[%emt 0:01:28]} 25. Nxc8 {[%emt 0:01:28]} Rxc8 {[%emt 0:00:26]} 26. Qxd6 {[%emt 0:00:15]} Qg5 {[%emt 0:02:06]} 27. h4 {[%emt 0:01:23]} Ne8 {[%emt 0:01:47]} 28. Qf8# {[%emt 0:37:51]} 1-0

[Event "DFMM-LV 2023"]
[Site "Braunfels"]
[Date "2023.06.09"]
[Round "2.26"]
[White "Stangl, Anita"]
[Black "Mader, Lena"]
[Result "1/2-1/2"]
[Annotator "TA"]
[ECO "B12"]
[WhiteElo "2009"]
[BlackElo "1778"]
[PlyCount "90"]
[EventDate "2023.06.09"]
[EventType "team-tourn"]
[EventCountry "GER"]
[SourceTitle "playchess.com"]
[Source "ChessBase"]
[SourceQuality "1"]
[TimeControl "40/5400+30:1800+30"]

{[%evp 9,90,11,0,-12,47,33,48,21,26,21,26,14,10,0,17,1,0,-37,26,12,37,7,45,51,57,0,0,0,0,0,0,0,0,-202,-196,-192,-210,-272,-284,-275,-279,-878,-866,-1587,-1564,-1566,-1837,-1689,-660,-631,-656,-615,-375,-331,-256,-946,-247,-276,-18,-16,-34,-27,-20,-17,99,-64,0,-120,0,0,0,0,0,0,0,0,0,0,0,-11,0,0,0]} 1. e4 {[%emt 0:00:01]} c6 {[%emt 0:00:04]} 2. d4 {[%emt 0:00:06]} d5 {[%emt 0:00:04]} 3. e5 {[%emt 0:00:04]} Bf5 {[%emt 0:00:11]} 4. g4 {[%emt 0:00:21]} Bd7 {[%emt 0:00:13]} 5. f4 {[%emt 0:04:15]} e6 {[%emt 0:00:30]} 6. Be3 {[%emt 0:13:26] [#] B12: Caro-Kann: Advance Variation.} (6. Nf3 c5 7. c3 Nc6 8. Bg2 cxd4 9. cxd4 Nge7 10. O-O Nc8 11. Nc3 Be7 12. a3 O-O 13. Qd3 {1-0 Stangl,A (2005)-Mader,L (1807) GER-ch Blitz (Women) 2021 (1)}) 6... Qc7 $146 {[%emt 0:06:03]} (6... Qb6 $11) ({Predecessor:} 6... h5 7. g5 Ne7 8. Nd2 c5 9. Ngf3 Nf5 10. Bf2 Qb6 11. Bd3 Bb5 12. Bxb5+ Qxb5 13. Qe2 Qxe2+ 14. Kxe2 cxd4 {½-½ Groszpeter,A (2441)-Borocz,I (2362) HUN-chT 1718 2017 (1.8)}) 7. Nf3 {[%emt 0:08:50]} c5 {[%emt 0:01:45]} 8. c3 {[%emt 0:00:11] White is slightly better.} cxd4 {[%emt 0:00:47]} 9. Nxd4 {[%emt 0:01:30]} Nc6 {[%emt 0:00:57]} 10. Nd2 {[%emt 0:05:52]} Nxd4 {[%emt 0:07:56]} 11. Bxd4 {[%emt 0:03:24]} Ne7 {[%emt 0:03:08]} 12. Be2 {[%emt 0:02:54]} Nc6 {[%emt 0:04:16]} 13. Be3 {[%emt 0:02:32]} b6 {[%emt 0:05:24]} ({Black should try} 13... g5 $1 $15) 14. Nf3 {[%emt 0:09:32]} Bc5 {[%emt 0:02:03]} 15. Nd4 {[%emt 0:03:56]} a6 {[%emt 0:02:32]} (15... O-O $5 {[%cal Rf7f6]}) 16. O-O {[%emt 0:01:26]} O-O {[%emt 0:03:16]} 17. Rf3 {[%emt 0:03:32]} (17. Bd3 $14) 17... f6 $11 {[%emt 0:20:26]} 18. exf6 {[%emt 0:04:02]} Rxf6 {[%emt 0:01:22]} 19. g5 {[%emt 0:02:43]} Rff8 {[%emt 0:01:21]} 20. Qd2 {[%emt 0:07:16]} e5 {[%emt 0:05:57][%cal Be6e5,Be5f4,Bf4f3][%mdl 32]} 21. Nb3 {[%emt 0:06:46]} (21. Nxc6 $11 {and White stays safe.} Bxc6 22. fxe5) 21... Bxe3+ $19 {[%emt 0:03:08][%mdl 64] [#] Deflection} 22. Rxe3 {[%emt 0:00:26]} exf4 {[%emt 0:01:35]} 23. Qxd5+ {[%emt 0:00:31]} Kh8 {[%emt 0:00:10]} 24. Rd3 {[%emt 0:01:58]} Ne5 {[%emt 0:10:09]} 25. Rd2 $2 {[%emt 0:04:04]} (25. Qd6 Qxd6 26. Rxd6) 25... f3 {[%emt 0:03:44]} 26. Bd1 {[%emt 0:09:10]} Bc6 {[%emt 0:02:38]} 27. Qe6 {[%emt 0:00:23]} Rae8 {[%emt 0:05:02]} 28. Qh3 {[%emt 0:00:25]} Nc4 {[%emt 0:02:27]} (28... f2+ $142 29. Rxf2 Rxf2) 29. Bc2 {[%emt 0:00:37][%csl Gc2][%cal Rh3h7] [#]} g6 {[%emt 0:03:14]} 30. Rf2 {[%emt 0:00:29]} Qf4 {[%emt 0:02:10]} 31. Nd4 {[%emt 0:00:58]} Qxg5+ {[%emt 0:01:25]} 32. Kh1 $2 {[%emt 0:00:03]} (32. Qg3 Qf6 33. Nxc6 Qxc6 34. Qh4) 32... Qf6 $2 {[%emt 0:01:38]} (32... Re2 33. Rg1 Qg2+ {[%mdl 64] X-Ray Attack} 34. Rfxg2 fxg2+ 35. Qxg2 Rxg2) 33. Rg1 {[%emt 0:00:40]} Rg8 {[%emt 0:00:24]} ({And not} 33... Nxb2 34. Nxc6 (34. Rxg6 Re1+ 35. Rg1 Rxg1+ 36. Kxg1 Qg5+ 37. Kh1 Qc1+ 38. Rf1 Qxc2 $17) (34. Bxg6 Qxg6 35. Rxg6 Nd1 $17) 34... Qxc6 35. Bxg6 $15 (35. Rxg6 Qc7 $17)) (33... Kg7 $19 {[%cal Oe8e2]} 34. Nf5+ Kg8 35. Nh6+ Kh8 36. Bxg6 Re7) 34. Nxc6 $11 {[%emt 0:03:30]} Qxc6 {[%emt 0:00:01]} 35. Qxf3 {[%emt 0:00:06]} Qxf3+ {[%emt 0:00:56]} 36. Rxf3 {[%emt 0:00:01]} Re2 {[%emt 0:00:29]} (36... Nxb2 $11 37. Rf6 b5) 37. Bb3 $2 {[%emt 0:00:16]} (37. Bd3 $16 Re3 38. Rxe3 Nxe3 39. Re1 (39. Bxa6 Ra8 $11)) 37... b5 {[%emt 0:00:13]} ({Better is} 37... Nd2 $1 $15 38. Rf6 Nxb3 39. axb3 Rxb2 40. Rxb6 Re8) 38. Rgf1 {[%emt 0:01:11]} (38. Bxc4 $11 bxc4 39. Rg2) 38... Rge8 {[%emt 0:00:35]} (38... Rxb2 $17 {[%cal Oc4d2] Threatens to win with ...Nd2!} 39. Kg1 Re8 40. Rf8+ Rxf8 41. Rxf8+ Kg7) 39. Bxc4 {[%emt 0:01:47] The position is equal.} bxc4 {[%emt 0:00:03][%mdl 4096] Endgame KRR-KRR} 40. R1f2 {[%emt 0:00:02]} Kg7 {[%emt 0:01:00]} 41. Rf7+ {[%emt 0:30:42]} Kh6 {[%emt 0:30:14]} 42. Kg2 {[%emt 0:00:18]} R8e6 {[%emt 0:00:00]} 43. Rb7 {[%emt 0:00:00]} R2e4 {[%emt 0:00:00]} 44. Rff7 {[%emt 0:00:00]} Re2+ {[%emt 0:00:00]} 45. Rf2 {[%emt 0:00:00]} R2e4 {[%emt 0:00:00] Whites escaped into a draw.   Weighted Error Value: White=0.71/Black=0.60.  Loses game:     	White=1     	---        Missed win:     	---       	---        Mistake:       	White=5     	Black=6      Inaccurate:     	White=4     	Black=1      OK:         	White=9     	Black=11     Best:        	White=2     	Black=3      Strong:       	---       	---        Brilliant:      	---       	---} 1/2-1/2

[Event "DFMM-LV 2023"]
[Site "Braunfels"]
[Date "2023.06.09"]
[Round "2.27"]
[White "Anisimova, Mariya"]
[Black "Braun, Kristin"]
[Result "0-1"]
[Annotator "NA RC COMBH"]
[ECO "B76"]
[WhiteElo "1649"]
[BlackElo "1875"]
[PlyCount "88"]
[EventDate "2023.06.09"]
[EventType "team-tourn"]
[EventCountry "GER"]
[SourceTitle "playchess.com"]
[Source "ChessBase"]
[SourceQuality "1"]
[TimeControl "40/5400+30:1800+30"]

1. e4 {[%emt 0:00:03]} c5 {[%emt 0:00:04]} 2. Nf3 {[%emt 0:00:04]} d6 {[%emt 0:00:08]} 3. d4 {[%emt 0:00:04]} cxd4 {[%emt 0:00:03]} 4. Nxd4 {[%emt 0:00:05]} Nf6 {[%emt 0:00:05]} 5. Nc3 {[%emt 0:00:06]} g6 {[%emt 0:00:07]} 6. Be3 {[%emt 0:00:11]} Bg7 {[%emt 0:00:04]} 7. f3 {[%emt 0:00:07]} O-O {[%emt 0:00:03]} 8. Qd2 {[%emt 0:00:06]} Nc6 {[%emt 0:00:06]} 9. g4 {[%emt 0:00:08]} Be6 {[%emt 0:00:04]} 10. Nxe6 {[%emt 0:04:24]} fxe6 {[%emt 0:00:08]} 11. O-O-O {[%emt 0:02:28]} Ne5 {[%emt 0:00:15]} 12. Be2 {[%emt 0:00:51]} Qc8 {[%emt 0:00:10]} 13. h4 {[%emt 0:06:58]} Nfd7 {[%emt 0:00:09]} 14. Bh6 {[%emt 0:10:49]} Nxf3 {[%emt 0:09:45]} 15. Bxf3 {[%emt 0:00:07]} Bxc3 {[%emt 0:09:12]} 16. Qe3 {[%emt 0:03:41]} Bg7 {[%emt 0:03:46]} 17. Bxg7 {[%emt 0:00:41]} Kxg7 {[%emt 0:00:33]} 18. h5 {[%emt 0:01:18]} Qc5 {[%emt 0:07:39]} 19. Qb3 {[%emt 0:07:24]} Qg5+ {[%emt 0:14:06]} 20. Kb1 {[%emt 0:00:50]} Nc5 {[%emt 0:02:52]} 21. Qa3 {[%emt 0:02:14]} Qf4 {[%emt 0:07:16]} 22. Bg2 {[%emt 0:02:49]} Qxg4 {[%emt 0:07:10]} 23. hxg6 {[%emt 0:04:36]} hxg6 {[%emt 0:04:54]} 24. Rhg1 {[%emt 0:06:16]} Rf2 {[%emt 0:06:56]} 25. Bh1 {[%emt 0:02:33]} Qf4 {[%emt 0:04:56]} 26. Qc3+ {[%emt 0:05:38]} e5 {[%emt 0:00:55]} 27. Qc4 {[%emt 0:01:08]} Qf7 {[%emt 0:02:44]} 28. Qc3 {[%emt 0:02:21]} Rh8 {[%emt 0:06:00]} 29. Qe3 {[%emt 0:03:23]} Rhh2 {[%emt 0:02:16]} 30. Rc1 {[%emt 0:00:20]} Qf4 {[%emt 0:03:00]} 31. Qc3 {[%emt 0:00:36]} Nxe4 {[%emt 0:05:17]} 32. Qd3 {[%emt 0:02:42]} Nd2+ {[%emt 0:01:10]} 33. Ka1 {[%emt 0:00:08]} e4 {[%emt 0:02:02]} 34. Qd4+ {[%emt 0:00:08]} Qf6 {[%emt 0:00:14]} 35. Qd5 {[%emt 0:02:38]} Nf3 {[%emt 0:01:24]} 36. Bxf3 {[%emt 0:01:42]} exf3 {[%emt 0:00:01]} 37. Qe4 {[%emt 0:01:20]} b6 {[%emt 0:01:53]} 38. Kb1 {[%emt 0:02:06]} Rfg2 {[%emt 0:00:34]} 39. Rgf1 {[%emt 0:00:14]} f2 {[%emt 0:00:33]} 40. Qe3 {[%emt 0:00:44]} Qg5 {[%emt 0:00:37]} 41. Qc3+ {[%emt 0:30:55]} Qe5 {[%emt 0:04:40]} 42. Qf3 {[%emt 0:00:00]} Rg3 {[%emt 0:03:16]} 43. Qd1 {[%emt 0:00:00]} Rhg2 {[%emt 0:01:35]} 44. Qd2 {[%emt 0:00:00]} Qe3 {[%emt 0:00:35]} 0-1

[Event "DFMM-LV 2023"]
[Site "Braunfels"]
[Date "2023.06.09"]
[Round "2.29"]
[White "Richter, Johanna"]
[Black "Ankerst, Milka"]
[Result "0-1"]
[Annotator "TA"]
[ECO "E00"]
[WhiteElo "1470"]
[BlackElo "1923"]
[PlyCount "78"]
[EventDate "2023.06.09"]
[EventType "team-tourn"]
[EventCountry "GER"]
[SourceTitle "playchess.com"]
[Source "ChessBase"]
[SourceQuality "1"]
[TimeControl "40/5400+30:1800+30"]

{[%evp 14,77,35,40,40,31,54,51,56,55,58,63,68,49,56,56,61,54,49,54,55,5,12,10,28,-625,-625,-831,-814,-738,-726,-835,-831,-852,-845,-838,-824,-884,-903,-1058,-1057,-1028,-956,-5373,-3028,-6004,-5988,-4998,-2209,-2025,-2019,-5497,-5493,-6660,-6543,-5697,-5485,-29982,-29983,-29983,-29984,-29989,-29984,-29996,-29997,-29999]} 1. d4 {[%emt 0:00:03]} Nf6 {[%emt 0:00:31]} 2. c4 {[%emt 0:00:15]} e6 {[%emt 1:30:59]} 3. Nf3 {[%emt 0:00:05]} Bb4+ {[%emt 0:00:00]} 4. Bd2 {[%emt 0:00:07]} Bxd2+ {[%emt 0:00:00]} 5. Qxd2 {[%emt 0:00:22]} d6 {[%emt 0:00:00]} 6. g3 {[%emt 0:00:15]} O-O {[%emt 0:00:00]} 7. Bg2 {[%emt 0:00:14]} Nc6 {[%emt 0:00:00]} 8. Nc3 {[%emt 0:02:45]} Bd7 {[%emt 0:00:00] E00: Catalan Bogo-Indian (3 g3 Bb4+).} 9. O-O {[%emt 0:01:05] [#]} Qc8 $146 {[%emt 0:00:00]} ({Predecessor:} 9... e5 10. d5 Nb8 11. b4 a5 12. a3 Na6 13. Qb2 b6 14. Ne1 Nh5 15. e4 g6 16. Nd3 {1-0 Chabanon,J (2432)-Toubale,T (2206) FRA-ch Blitz 2022 (11)}) 10. a3 {[%emt 0:02:21]} Rb8 {[%emt 0:00:00] White is slightly better.} 11. b4 {[%emt 0:01:25]} b6 {[%emt 0:00:00]} 12. Rfd1 {[%emt 0:05:13]} Re8 {[%emt 0:00:00]} 13. Qc2 {[%emt 0:09:35]} e5 {[%emt 0:00:00]} 14. dxe5 {[%emt 1:13:45]} Nxe5 {[%emt 0:00:00]} 15. Nxe5 {[%emt 0:00:00]} Rxe5 {[%emt 0:00:00]} 16. Nd5 {[%emt 0:00:00]} Qd8 {[%emt 0:00:00]} 17. Nxf6+ {[%emt 0:00:00]} (17. e3 $14) 17... Qxf6 $11 {[%emt 0:00:00]} 18. e3 {[%emt 0:00:00]} Bg4 {[%emt 0:00:00]} 19. Rd5 {[%emt 0:00:00][%mdl 8192] This costs White the game.} (19. Rd4 $11 Bf5 20. Qa4) 19... Rxd5 $19 {[%emt 0:00:00][%mdl 64] [#] Discovered Attack} 20. Bxd5 {[%emt 0:00:00]} Qxa1+ {[%emt 0:00:00]} 21. Kg2 {[%emt 0:00:00]} Qe5 {[%emt 0:00:00]} 22. h3 {[%emt 0:00:00]} Bf5 {[%emt 0:00:00]} 23. e4 {[%emt 0:00:00]} Bd7 {[%emt 0:00:00]} 24. b5 {[%emt 0:00:00]} Be6 {[%emt 0:00:00] aiming for ...Bxd5.} 25. Bc6 {[%emt 0:00:00]} Qc5 {[%emt 0:00:00][%csl LRa3,LRc4]} 26. Qc3 {[%emt 0:00:00]} Bxc4 {[%emt 0:00:00][%cal Oc4f1] [#] Threatens to win with ...Bf1+!} 27. Qb2 {[%emt 0:00:00]} d5 {[%emt 0:00:00] White must now prevent ...dxe4.} 28. exd5 {[%emt 0:00:00]} Bxd5+ {[%emt 0:00:00]} 29. Bxd5 {[%emt 0:00:00]} Qxd5+ {[%emt 0:00:00]} 30. Kh2 {[%emt 0:00:00]} Rd8 {[%emt 0:00:00]} 31. Qe2 {[%emt 0:00:00]} h6 {[%emt 0:00:00]} 32. h4 {[%emt 0:00:00]} Rd6 {[%emt 0:00:00] ...Re6 is the strong threat.} 33. Qe8+ {[%emt 0:00:00]} Kh7 {[%emt 0:00:00] ( -> ...Qf3)} 34. Qe2 {[%emt 0:00:00] Against Qf3} Rf6 {[%emt 0:00:00] ...Qf3 would be deadly.} 35. f4 {[%emt 0:00:00]} Re6 {[%emt 0:00:00] Black mates.} 36. Qc2+ {[%emt 0:00:00]} Kg8 {[%emt 0:00:00]} 37. a4 {[%emt 0:00:00]} Re1 {[%emt 0:00:00][%csl Ge1][%cal Rd5h1]} 38. Kh3 {[%emt 0:00:00]} Rh1+ {[%emt 0:00:00]} 39. Kg4 {[%emt 0:00:00]} h5# {[%emt 0:00:00] Weighted Error Value: White=0.74/Black=0.04 (flawless) .  Loses game:     	White=1     	---        Missed win:     	---       	---        Mistake:       	White=1     	---        Inaccurate:     	White=1     	---        OK:         	White=2     	Black=4      Best:        	---       	Black=1      Strong:       	---       	---        Brilliant:      	---       	---} 0-1